[Event "Titled Tuesday Blitz November 16 2021"]
[White "FGHSMN"]
[Black "Weetik, Vjacheslav"]
[BlackFideId "4153472"]
[WhiteElo "2686"]
[BlackElo "2469"]
[Result "1/2-1/2"]
[Round "07"]
[TimeControl "180+1"]
[Date "2021.11.16"]
[WhiteClock "0:00:29"]
[BlackClock "0:00:15"]

1. e4 {[%clk 0:03:00]}  c6 {[%clk 0:02:59]} 2. d4 {[%clk 0:03:00]}  d5 {[%clk 0:02:59]} 3. Nc3 {[%clk 0:03:01]}  dxe4 {[%clk 0:03:00]} 4. Nxe4 {[%clk 0:03:02]}  Nf6 {[%clk 0:03:00]} 5. Nxf6+ {[%clk 0:03:01]}  exf6 {[%clk 0:03:01]} 6. c3 {[%clk 0:03:02]}  Bd6 {[%clk 0:03:02]} 7. Bd3 {[%clk 0:03:02]}  O-O {[%clk 0:03:02]} 8. Qc2 {[%clk 0:03:03]}  Re8+ {[%clk 0:03:03]} 9. Ne2 {[%clk 0:03:03]}  h5 {[%clk 0:03:04]} 10. O-O {[%clk 0:03:03]}  h4 {[%clk 0:03:03]} 11. Bf4 {[%clk 0:03:03]}  h3 {[%clk 0:03:02]} 12. g3 {[%clk 0:03:00]}  Bf8 {[%clk 0:02:56]} 13. Rae1 {[%clk 0:02:39]}  Nd7 {[%clk 0:02:29]} 14. Be3 {[%clk 0:02:33]}  Nb6 {[%clk 0:02:22]} 15. c4 {[%clk 0:02:31]}  Bg4 {[%clk 0:01:49]} 16. b3 {[%clk 0:02:08]}  Qd7 {[%clk 0:01:22]} 17. Nc3 {[%clk 0:01:31]}  Bb4 {[%clk 0:01:13]} 18. f3 {[%clk 0:01:24]}  Rxe3 {[%clk 0:01:05]} 19. Rxe3 {[%clk 0:01:25]}  Qxd4 {[%clk 0:01:05]} 20. Qf2 {[%clk 0:01:25]}  Bc5 {[%clk 0:00:49]} 21. Rfe1 {[%clk 0:01:12]}  Be6 {[%clk 0:00:29]} 22. Ne4 {[%clk 0:01:04]}  Bb4 {[%clk 0:00:19]} 23. Rd1 {[%clk 0:01:03]}  Rd8 {[%clk 0:00:17]} 24. Re2 {[%clk 0:00:57]}  Kf8 {[%clk 0:00:06]} 25. Qxd4 {[%clk 0:00:56]}  Rxd4 {[%clk 0:00:07]} 26. Kf1 {[%clk 0:00:53]}  Nd7 {[%clk 0:00:06]} 27. Bc2 {[%clk 0:00:48]}  c5 {[%clk 0:00:04]} 28. Rxd4 {[%clk 0:00:44]}  cxd4 {[%clk 0:00:05]} 29. Nf2 {[%clk 0:00:45]}  Ne5 {[%clk 0:00:05]} 30. Be4 {[%clk 0:00:41]}  b6 {[%clk 0:00:03]} 31. Nd3 {[%clk 0:00:41]}  Nxd3 {[%clk 0:00:02]} 32. Bxd3 {[%clk 0:00:41]}  Bc3 {[%clk 0:00:02]} 33. g4 {[%clk 0:00:39]}  g6 {[%clk 0:00:02]} 34. Kf2 {[%clk 0:00:39]}  Kg7 {[%clk 0:00:01]} 35. Kg3 {[%clk 0:00:40]}  g5 {[%clk 0:00:02]} 36. Kxh3 {[%clk 0:00:39]}  Kf8 {[%clk 0:00:02]} 37. Kg3 {[%clk 0:00:40]}  Bb4 {[%clk 0:00:01]} 38. h4 {[%clk 0:00:38]}  Bd6+ {[%clk 0:00:02]} 39. Kh3 {[%clk 0:00:38]}  Bf4 {[%clk 0:00:03]} 40. h5 {[%clk 0:00:38]}  Kg7 {[%clk 0:00:03]} 41. b4 {[%clk 0:00:33]}  Be3 {[%clk 0:00:03]} 42. c5 {[%clk 0:00:32]}  bxc5 {[%clk 0:00:04]} 43. bxc5 {[%clk 0:00:33]}  Bd5 {[%clk 0:00:04]} 44. Be4 {[%clk 0:00:30]}  Bc4 {[%clk 0:00:04]} 45. Re1 {[%clk 0:00:18]}  Bf4 {[%clk 0:00:04]} 46. c6 {[%clk 0:00:18]}  d3 {[%clk 0:00:05]} 47. Rd1 {[%clk 0:00:18]}  d2 {[%clk 0:00:05]} 48. c7 {[%clk 0:00:17]}  Bxc7 {[%clk 0:00:02]} 49. Rxd2 {[%clk 0:00:17]}  Bf1+ {[%clk 0:00:03]} 50. Rg2 {[%clk 0:00:15]}  Bf4 {[%clk 0:00:02]} 51. Bd5 {[%clk 0:00:13]}  Bxg2+ {[%clk 0:00:02]} 52. Kxg2 {[%clk 0:00:13]}  Bd6 {[%clk 0:00:03]} 53. Kf2 {[%clk 0:00:13]}  Bc5+ {[%clk 0:00:03]} 54. Ke2 {[%clk 0:00:13]}  Bb6 {[%clk 0:00:04]} 55. Kd3 {[%clk 0:00:14]}  Bf2 {[%clk 0:00:04]} 56. Ke4 {[%clk 0:00:14]}  Bb6 {[%clk 0:00:04]} 57. Kf5 {[%clk 0:00:15]}  Bd4 {[%clk 0:00:03]} 58. Bc4 {[%clk 0:00:15]}  Bc3 {[%clk 0:00:03]} 59. Bb3 {[%clk 0:00:15]}  Bb2 {[%clk 0:00:03]} 60. Ke4 {[%clk 0:00:14]}  Bc3 {[%clk 0:00:03]} 61. Kd5 {[%clk 0:00:15]}  Be1 {[%clk 0:00:02]} 62. a4 {[%clk 0:00:15]}  Bf2 {[%clk 0:00:03]} 63. a5 {[%clk 0:00:15]}  Be3 {[%clk 0:00:02]} 64. a6 {[%clk 0:00:16]}  Bf2 {[%clk 0:00:02]} 65. Ke4 {[%clk 0:00:16]}  Bb6 {[%clk 0:00:02]} 66. Kf5 {[%clk 0:00:17]}  Bd8 {[%clk 0:00:02]} 67. Bd5 {[%clk 0:00:16]}  Be7 {[%clk 0:00:02]} 68. Bc4 {[%clk 0:00:15]}  Bd8 {[%clk 0:00:03]} 69. Ke4 {[%clk 0:00:08]}  Bc7 {[%clk 0:00:03]} 70. Kd5 {[%clk 0:00:09]}  Bb6 {[%clk 0:00:03]} 71. Kc6 {[%clk 0:00:10]}  Be3 {[%clk 0:00:03]} 72. Kd7 {[%clk 0:00:10]}  Bd4 {[%clk 0:00:03]} 73. Ke8 {[%clk 0:00:11]}  Bc3 {[%clk 0:00:02]} 74. Bxf7 {[%clk 0:00:11]}  Bd4 {[%clk 0:00:03]} 75. Be6 {[%clk 0:00:11]}  Bc3 {[%clk 0:00:02]} 76. Kd7 {[%clk 0:00:12]}  Bd4 {[%clk 0:00:03]} 77. Kc6 {[%clk 0:00:12]}  Be3 {[%clk 0:00:03]} 78. Kd5 {[%clk 0:00:13]}  Bb6 {[%clk 0:00:03]} 79. Ke4 {[%clk 0:00:14]}  Bc7 {[%clk 0:00:03]} 80. Kf5 {[%clk 0:00:14]}  Bf4 {[%clk 0:00:03]} 81. Bd5 {[%clk 0:00:13]}  Bc7 {[%clk 0:00:03]} 82. Ke6 {[%clk 0:00:13]}  Bf4 {[%clk 0:00:03]} 83. Kd7 {[%clk 0:00:14]}  Be5 {[%clk 0:00:03]} 84. Kc6 {[%clk 0:00:14]}  Bf4 {[%clk 0:00:03]} 85. Be4 {[%clk 0:00:14]}  Be5 {[%clk 0:00:03]} 86. Kb7 {[%clk 0:00:13]}  Bd4 {[%clk 0:00:03]} 87. Bf5 {[%clk 0:00:14]}  Be3 {[%clk 0:00:04]} 88. Kc6 {[%clk 0:00:14]}  Bd4 {[%clk 0:00:04]} 89. Kd5 {[%clk 0:00:15]}  Bb6 {[%clk 0:00:05]} 90. Ke4 {[%clk 0:00:16]}  Bc7 {[%clk 0:00:05]} 91. Bd7 {[%clk 0:00:16]}  Bf4 {[%clk 0:00:05]} 92. Kf5 {[%clk 0:00:16]}  Bc7 {[%clk 0:00:05]} 93. h6+ {[%clk 0:00:16]}  Kxh6 {[%clk 0:00:05]} 94. Kxf6 {[%clk 0:00:17]}  Bf4 {[%clk 0:00:06]} 95. Kf5 {[%clk 0:00:17]}  Bc1 {[%clk 0:00:06]} 96. Be6 {[%clk 0:00:17]}  Bf4 {[%clk 0:00:06]} 97. Ke4 {[%clk 0:00:17]}  Bc7 {[%clk 0:00:06]} 98. Kd5 {[%clk 0:00:18]}  Bf4 {[%clk 0:00:06]} 99. Kc6 {[%clk 0:00:19]}  Be3 {[%clk 0:00:06]} 100. Kb7 {[%clk 0:00:20]}  Bd4 {[%clk 0:00:07]} 101. Bd5 {[%clk 0:00:20]}  Bb6 {[%clk 0:00:07]} 102. f4 {[%clk 0:00:19]}  gxf4 {[%clk 0:00:07]} 103. Bf3 {[%clk 0:00:20]}  Kg5 {[%clk 0:00:07]} 104. Kc6 {[%clk 0:00:20]}  Kh4 {[%clk 0:00:04]} 105. Kd5 {[%clk 0:00:21]}  Kg3 {[%clk 0:00:04]} 106. Ke4 {[%clk 0:00:22]}  Kh4 {[%clk 0:00:04]} 107. Kxf4 {[%clk 0:00:21]}  Bc7+ {[%clk 0:00:04]} 108. Kf5 {[%clk 0:00:21]}  Bd8 {[%clk 0:00:05]} 109. Be4 {[%clk 0:00:21]}  Bg5 {[%clk 0:00:05]} 110. Bd5 {[%clk 0:00:21]}  Bd8 {[%clk 0:00:05]} 111. Be6 {[%clk 0:00:22]}  Bg5 {[%clk 0:00:05]} 112. Ke5 {[%clk 0:00:23]}  Bd8 {[%clk 0:00:05]} 113. Kd4 {[%clk 0:00:24]}  Kg5 {[%clk 0:00:05]} 114. Kc5 {[%clk 0:00:24]}  Bb6+ {[%clk 0:00:06]} 115. Kc6 {[%clk 0:00:24]}  Bg1 {[%clk 0:00:07]} 116. Kb7 {[%clk 0:00:24]}  Bf2 {[%clk 0:00:07]} 117. Kc6 {[%clk 0:00:25]}  Bg1 {[%clk 0:00:08]} 118. Kd5 {[%clk 0:00:26]}  Bf2 {[%clk 0:00:08]} 119. Ke4 {[%clk 0:00:27]}  Bb6 {[%clk 0:00:09]} 120. Bc8 {[%clk 0:00:26]}  Bc7 {[%clk 0:00:08]} 121. Kd5 {[%clk 0:00:25]}  Bb6 {[%clk 0:00:09]} 122. Kc6 {[%clk 0:00:26]}  Bf2 {[%clk 0:00:09]} 123. Bf5 {[%clk 0:00:25]}  Bg1 {[%clk 0:00:09]} 124. Kd5 {[%clk 0:00:25]}  Bf2 {[%clk 0:00:10]} 125. Ke4 {[%clk 0:00:26]}  Bb6 {[%clk 0:00:10]} 126. Kf3 {[%clk 0:00:27]}  Bc5 {[%clk 0:00:10]} 127. Ke4 {[%clk 0:00:27]}  Bb6 {[%clk 0:00:11]} 128. Kd5 {[%clk 0:00:28]}  Bf2 {[%clk 0:00:11]} 129. Kc6 {[%clk 0:00:28]}  Bg1 {[%clk 0:00:12]} 130. Kb7 {[%clk 0:00:29]}  Bb6 {[%clk 0:00:12]} 131. Bc8 {[%clk 0:00:28]}  Bg1 {[%clk 0:00:13]} 132. Bf5 {[%clk 0:00:28]}  Bb6 {[%clk 0:00:14]} 133. Bc8 {[%clk 0:00:28]}  Bg1 {[%clk 0:00:15]} 134. Bf5 {[%clk 0:00:29]} 1/2-1/2


[Site "https://www.chess.com"]

[Event "Titled Tuesday Blitz November 16 2021"]
[White "Gubajdullin, Alexei"]
[Black "Xiong, Jeffery"]
[WhiteFideId "4141202"]
[BlackFideId "2047640"]
[WhiteElo "2268"]
[BlackElo "2699"]
[Result "0-1"]
[Round "07"]
[TimeControl "180+1"]
[Date "2021.11.16"]
[WhiteClock "0:00:01"]
[BlackClock "0:00:59"]

1. d4 {[%clk 0:03:00]}  Nf6 {[%clk 0:02:58]} 2. Nf3 {[%clk 0:03:00]}  g6 {[%clk 0:02:57]} 3. Bf4 {[%clk 0:03:00]}  Bg7 {[%clk 0:02:57]} 4. e3 {[%clk 0:03:00]}  O-O {[%clk 0:02:57]} 5. Be2 {[%clk 0:03:00]}  c5 {[%clk 0:02:56]} 6. c3 {[%clk 0:02:57]}  Qb6 {[%clk 0:02:56]} 7. Qb3 {[%clk 0:02:56]}  d6 {[%clk 0:02:56]} 8. O-O {[%clk 0:02:52]}  Be6 {[%clk 0:02:56]} 9. Qxb6 {[%clk 0:02:50]}  axb6 {[%clk 0:02:56]} 10. a3 {[%clk 0:02:48]}  Nc6 {[%clk 0:02:57]} 11. Nbd2 {[%clk 0:02:46]}  h6 {[%clk 0:02:54]} 12. h3 {[%clk 0:02:45]}  Rfc8 {[%clk 0:02:53]} 13. Rfe1 {[%clk 0:02:44]}  Nd5 {[%clk 0:02:48]} 14. Bg3 {[%clk 0:02:42]}  Nc7 {[%clk 0:02:46]} 15. Rac1 {[%clk 0:02:39]}  g5 {[%clk 0:02:41]} 16. Bc4 {[%clk 0:02:35]}  Bxc4 {[%clk 0:02:39]} 17. Nxc4 {[%clk 0:02:35]}  Ra6 {[%clk 0:02:40]} 18. Ncd2 {[%clk 0:02:31]}  f5 {[%clk 0:02:40]} 19. h4 {[%clk 0:02:22]}  Bf6 {[%clk 0:02:37]} 20. hxg5 {[%clk 0:02:09]}  hxg5 {[%clk 0:02:38]} 21. Kf1 {[%clk 0:02:09]}  Kf7 {[%clk 0:02:37]} 22. Ke2 {[%clk 0:02:08]}  e5 {[%clk 0:02:27]} 23. Nc4 {[%clk 0:01:58]}  Ke6 {[%clk 0:02:27]} 24. dxe5 {[%clk 0:01:55]}  dxe5 {[%clk 0:02:28]} 25. Rcd1 {[%clk 0:01:54]}  Ne8 {[%clk 0:02:25]} 26. Rh1 {[%clk 0:01:45]}  b5 {[%clk 0:02:25]} 27. Ncd2 {[%clk 0:01:44]}  Nd6 {[%clk 0:02:23]} 28. Rh6 {[%clk 0:01:42]}  Rg8 {[%clk 0:02:23]} 29. Nb3 {[%clk 0:01:39]}  Ne4 {[%clk 0:02:09]} 30. Nfd2 {[%clk 0:01:39]}  Nxg3+ {[%clk 0:02:08]} 31. fxg3 {[%clk 0:01:38]}  b6 {[%clk 0:02:09]} 32. g4 {[%clk 0:01:23]}  Ne7 {[%clk 0:02:08]} 33. gxf5+ {[%clk 0:01:20]}  Nxf5 {[%clk 0:02:09]} 34. Ne4 {[%clk 0:01:19]}  Nxh6 {[%clk 0:02:09]} 35. Rd6+ {[%clk 0:01:14]}  Ke7 {[%clk 0:02:04]} 36. Rxf6 {[%clk 0:01:10]}  Ng4 {[%clk 0:02:04]} 37. Rc6 {[%clk 0:01:06]}  Ra4 {[%clk 0:02:04]} 38. Nbd2 {[%clk 0:00:59]}  Rb8 {[%clk 0:01:49]} 39. Rg6 {[%clk 0:00:57]}  Raa8 {[%clk 0:01:34]} 40. Kf3 {[%clk 0:00:37]}  Nh2+ {[%clk 0:01:34]} 41. Kg3 {[%clk 0:00:37]}  Rh8 {[%clk 0:01:35]} 42. Rxb6 {[%clk 0:00:28]}  Rh4 {[%clk 0:01:23]} 43. Nxc5 {[%clk 0:00:23]}  Rah8 {[%clk 0:01:22]} 44. Rb7+ {[%clk 0:00:20]}  Kd6 {[%clk 0:01:22]} 45. Nde4+ {[%clk 0:00:19]}  Kc6 {[%clk 0:01:22]} 46. Rf7 {[%clk 0:00:17]}  Rg4+ {[%clk 0:01:17]} 47. Kf2 {[%clk 0:00:16]}  Rd8 {[%clk 0:01:13]} 48. Rf6+ {[%clk 0:00:14]}  Kd5 {[%clk 0:01:10]} 49. Kg1 {[%clk 0:00:09]}  Rxe4 {[%clk 0:00:58]} 50. Nxe4 {[%clk 0:00:08]}  Ng4 {[%clk 0:00:59]} 51. Rg6 {[%clk 0:00:02]}  Kxe4 {[%clk 0:00:59]} 52. g3 {[%clk 0:00:01]}  Kf3 {[%clk 0:00:59]} 0-1


[Site "https://www.chess.com"]

[Event "Titled Tuesday Blitz November 16 2021"]
[White "Gurvich, Vitaly"]
[Black "Preotu, Razvan"]
[WhiteFideId "24164852"]
[BlackFideId "2613280"]
[WhiteElo "2275"]
[BlackElo "2407"]
[Result "1-0"]
[Round "07"]
[TimeControl "180+1"]
[Date "2021.11.16"]
[WhiteClock "0:00:06"]
[BlackClock "0:00:01"]

1. b3 {[%clk 0:03:00]}  e5 {[%clk 0:02:59]} 2. Bb2 {[%clk 0:03:00]}  Nc6 {[%clk 0:03:00]} 3. e3 {[%clk 0:02:59]}  Nf6 {[%clk 0:02:52]} 4. Bb5 {[%clk 0:02:58]}  Bd6 {[%clk 0:02:51]} 5. Na3 {[%clk 0:02:58]}  Na5 {[%clk 0:02:51]} 6. Be2 {[%clk 0:02:55]}  a6 {[%clk 0:02:51]} 7. c4 {[%clk 0:02:55]}  O-O {[%clk 0:02:48]} 8. Nc2 {[%clk 0:02:54]}  Re8 {[%clk 0:02:47]} 9. Nf3 {[%clk 0:02:53]}  Nc6 {[%clk 0:02:33]} 10. d4 {[%clk 0:02:51]}  exd4 {[%clk 0:02:20]} 11. Nfxd4 {[%clk 0:02:50]}  Nxd4 {[%clk 0:02:08]} 12. Bxd4 {[%clk 0:02:48]}  Qe7 {[%clk 0:02:02]} 13. g3 {[%clk 0:02:41]}  Be5 {[%clk 0:01:59]} 14. O-O {[%clk 0:02:40]}  d6 {[%clk 0:01:58]} 15. Bf3 {[%clk 0:02:38]}  Bh3 {[%clk 0:01:51]} 16. Bg2 {[%clk 0:02:38]}  Bxg2 {[%clk 0:01:50]} 17. Kxg2 {[%clk 0:02:39]}  Rad8 {[%clk 0:01:49]} 18. Qf3 {[%clk 0:02:37]}  c5 {[%clk 0:01:41]} 19. Rae1 {[%clk 0:02:34]}  Qc7 {[%clk 0:01:29]} 20. Bxe5 {[%clk 0:02:31]}  dxe5 {[%clk 0:01:30]} 21. e4 {[%clk 0:02:31]}  Qa5 {[%clk 0:01:29]} 22. a4 {[%clk 0:02:24]}  Qd2 {[%clk 0:01:22]} 23. Ne3 {[%clk 0:02:23]}  Rd4 {[%clk 0:00:59]} 24. Rd1 {[%clk 0:01:40]}  Qb2 {[%clk 0:00:37]} 25. Nf5 {[%clk 0:01:37]}  Qc2 {[%clk 0:00:09]} 26. Nxd4 {[%clk 0:01:29]}  cxd4 {[%clk 0:00:10]} 27. Rfe1 {[%clk 0:01:28]}  a5 {[%clk 0:00:10]} 28. c5 {[%clk 0:01:25]}  Qxc5 {[%clk 0:00:10]} 29. Rc1 {[%clk 0:01:24]}  Qb4 {[%clk 0:00:10]} 30. Red1 {[%clk 0:01:25]}  Qb6 {[%clk 0:00:05]} 31. Rc4 {[%clk 0:01:24]}  h5 {[%clk 0:00:05]} 32. h3 {[%clk 0:01:24]}  g6 {[%clk 0:00:03]} 33. Qd3 {[%clk 0:01:20]}  Kg7 {[%clk 0:00:03]} 34. Rdc1 {[%clk 0:01:20]}  Re7 {[%clk 0:00:03]} 35. Rc8 {[%clk 0:01:19]}  Rd7 {[%clk 0:00:04]} 36. R1c5 {[%clk 0:01:13]}  Qe6 {[%clk 0:00:03]} 37. Rxa5 {[%clk 0:01:10]}  h4 {[%clk 0:00:03]} 38. g4 {[%clk 0:01:07]}  Nh7 {[%clk 0:00:04]} 39. Raa8 {[%clk 0:01:07]}  Ng5 {[%clk 0:00:03]} 40. Qd2 {[%clk 0:00:56]}  Nxe4 {[%clk 0:00:03]} 41. Rg8+ {[%clk 0:00:57]}  Kf6 {[%clk 0:00:03]} 42. Qh6 {[%clk 0:00:56]}  Qd5 {[%clk 0:00:02]} 43. Kg1 {[%clk 0:00:54]}  Nc3 {[%clk 0:00:02]} 44. Qxh4+ {[%clk 0:00:54]}  Ke6 {[%clk 0:00:02]} 45. Rge8+ {[%clk 0:00:53]}  Kd6 {[%clk 0:00:02]} 46. Qf6+ {[%clk 0:00:50]}  Kc5 {[%clk 0:00:03]} 47. Ra5+ {[%clk 0:00:46]}  b5 {[%clk 0:00:04]} 48. Rxe5 {[%clk 0:00:29]}  Kb4 {[%clk 0:00:04]} 49. Rxd5 {[%clk 0:00:27]}  Rxd5 {[%clk 0:00:05]} 50. Ra7 {[%clk 0:00:23]}  d3 {[%clk 0:00:05]} 51. Qf4+ {[%clk 0:00:20]}  Kxb3 {[%clk 0:00:06]} 52. Qd2 {[%clk 0:00:20]}  bxa4 {[%clk 0:00:05]} 53. Rb7+ {[%clk 0:00:20]}  Nb5 {[%clk 0:00:02]} 54. Kg2 {[%clk 0:00:18]}  a3 {[%clk 0:00:03]} 55. Re7 {[%clk 0:00:18]}  a2 {[%clk 0:00:03]} 56. Re1 {[%clk 0:00:18]}  Nc3 {[%clk 0:00:03]} 57. Rc1 {[%clk 0:00:17]}  Nb1 {[%clk 0:00:01]} 58. Qd1+ {[%clk 0:00:13]}  Kb2 {[%clk 0:00:02]} 59. Rc4 {[%clk 0:00:10]}  a1=Q {[%clk 0:00:02]} 60. Rb4+ {[%clk 0:00:10]}  Kc3 {[%clk 0:00:03]} 61. Qb3+ {[%clk 0:00:08]}  Kd2 {[%clk 0:00:03]} 62. Qxd5 {[%clk 0:00:08]}  Nc3 {[%clk 0:00:03]} 63. Qg5+ {[%clk 0:00:06]}  Kc2 {[%clk 0:00:03]} 64. Rd4 {[%clk 0:00:04]}  Qa8+ {[%clk 0:00:04]} 65. f3 {[%clk 0:00:03]}  Qe8 {[%clk 0:00:05]} 66. Qf4 {[%clk 0:00:02]}  Qe2+ {[%clk 0:00:05]} 67. Kg3 {[%clk 0:00:01]}  d2 {[%clk 0:00:06]} 68. Rxd2+ {[%clk 0:00:01]}  Qxd2 {[%clk 0:00:06]} 69. Qxd2+ {[%clk 0:00:02]}  Kxd2 {[%clk 0:00:07]} 70. Kf4 {[%clk 0:00:03]}  Ke2 {[%clk 0:00:07]} 71. h4 {[%clk 0:00:03]}  Nd5+ {[%clk 0:00:07]} 72. Ke5 {[%clk 0:00:04]}  Kxf3 {[%clk 0:00:07]} 73. h5 {[%clk 0:00:04]}  gxh5 {[%clk 0:00:04]} 74. gxh5 {[%clk 0:00:05]}  Kg4 {[%clk 0:00:02]} 75. h6 {[%clk 0:00:05]}  Ne7 {[%clk 0:00:01]} 76. h7 {[%clk 0:00:06]}  f5 {[%clk 0:00:01]} 77. Kf6 {[%clk 0:00:06]} 1-0


[Site "https://www.chess.com"]

[Event "Titled Tuesday Blitz November 16 2021"]
[White "Horobetz, Graham"]
[Black "Remizov, Yaroslav"]
[WhiteFideId "2047322"]
[BlackFideId "34134015"]
[WhiteElo "2612"]
[BlackElo "2325"]
[Result "1-0"]
[Round "07"]
[TimeControl "180+1"]
[Date "2021.11.16"]
[WhiteClock "0:00:12"]
[BlackClock "0:00:04"]

1. e4 {[%clk 0:03:00]}  Nc6 {[%clk 0:02:59]} 2. Nf3 {[%clk 0:02:59]}  d6 {[%clk 0:02:59]} 3. Bb5 {[%clk 0:02:58]}  a6 {[%clk 0:02:58]} 4. Ba4 {[%clk 0:02:56]}  Nf6 {[%clk 0:02:57]} 5. d3 {[%clk 0:02:56]}  Bg4 {[%clk 0:02:53]} 6. c3 {[%clk 0:02:54]}  e6 {[%clk 0:02:52]} 7. h3 {[%clk 0:02:55]}  Bh5 {[%clk 0:02:51]} 8. Be3 {[%clk 0:02:53]}  Be7 {[%clk 0:02:49]} 9. Nbd2 {[%clk 0:02:53]}  O-O {[%clk 0:02:48]} 10. O-O {[%clk 0:02:53]}  d5 {[%clk 0:02:45]} 11. Qe2 {[%clk 0:02:51]}  Ne5 {[%clk 0:02:25]} 12. g4 {[%clk 0:02:40]}  Nxf3+ {[%clk 0:02:25]} 13. Qxf3 {[%clk 0:02:33]}  Bg6 {[%clk 0:02:19]} 14. Bc2 {[%clk 0:02:31]}  dxe4 {[%clk 0:02:16]} 15. dxe4 {[%clk 0:02:32]}  Nd7 {[%clk 0:02:16]} 16. Qe2 {[%clk 0:02:30]}  Bc5 {[%clk 0:02:10]} 17. f4 {[%clk 0:02:24]}  Qh4 {[%clk 0:01:38]} 18. Kg2 {[%clk 0:02:15]}  Bxe3 {[%clk 0:01:34]} 19. Qxe3 {[%clk 0:02:16]}  f5 {[%clk 0:01:35]} 20. exf5 {[%clk 0:01:50]}  exf5 {[%clk 0:01:36]} 21. g5 {[%clk 0:01:51]}  Rae8 {[%clk 0:01:32]} 22. Qg3 {[%clk 0:01:50]}  Qxg3+ {[%clk 0:01:12]} 23. Kxg3 {[%clk 0:01:51]}  Re2 {[%clk 0:01:02]} 24. Rf2 {[%clk 0:01:26]}  Rfe8 {[%clk 0:01:02]} 25. Rxe2 {[%clk 0:01:26]}  Rxe2 {[%clk 0:01:00]} 26. Rd1 {[%clk 0:01:23]}  Nc5 {[%clk 0:00:45]} 27. Nb3 {[%clk 0:00:56]}  Ne4+ {[%clk 0:00:19]} 28. Bxe4 {[%clk 0:00:52]}  fxe4 {[%clk 0:00:20]} 29. f5 {[%clk 0:00:41]}  Re3+ {[%clk 0:00:04]} 30. Kg4 {[%clk 0:00:36]}  h5+ {[%clk 0:00:04]} 31. gxh6 {[%clk 0:00:33]}  Bf7 {[%clk 0:00:05]} 32. hxg7 {[%clk 0:00:25]}  Kxg7 {[%clk 0:00:04]} 33. Rd7 {[%clk 0:00:25]}  Re2 {[%clk 0:00:03]} 34. Nc5 {[%clk 0:00:21]}  Rxb2 {[%clk 0:00:03]} 35. Nxe4 {[%clk 0:00:20]}  Rxa2 {[%clk 0:00:03]} 36. Ng5 {[%clk 0:00:19]}  Rg2+ {[%clk 0:00:01]} 37. Kf4 {[%clk 0:00:20]}  Rxg5 {[%clk 0:00:01]} 38. Kxg5 {[%clk 0:00:20]}  a5 {[%clk 0:00:01]} 39. Rxc7 {[%clk 0:00:18]}  b5 {[%clk 0:00:02]} 40. f6+ {[%clk 0:00:14]}  Kf8 {[%clk 0:00:01]} 41. Rc8+ {[%clk 0:00:13]}  Be8 {[%clk 0:00:01]} 42. Ra8 {[%clk 0:00:09]}  a4 {[%clk 0:00:01]} 43. h4 {[%clk 0:00:10]}  Kf7 {[%clk 0:00:02]} 44. Ra7+ {[%clk 0:00:10]}  Kg8 {[%clk 0:00:01]} 45. h5 {[%clk 0:00:10]}  Kf8 {[%clk 0:00:01]} 46. h6 {[%clk 0:00:10]}  Kg8 {[%clk 0:00:01]} 47. Ra8 {[%clk 0:00:10]}  Kh8 {[%clk 0:00:02]} 48. Rxe8+ {[%clk 0:00:10]}  Kh7 {[%clk 0:00:03]} 49. Re7+ {[%clk 0:00:10]}  Kg8 {[%clk 0:00:03]} 50. Kg6 {[%clk 0:00:11]}  Kf8 {[%clk 0:00:04]} 51. h7 {[%clk 0:00:12]}  b4 {[%clk 0:00:04]} 52. h8=Q# {[%clk 0:00:12]} 1-0


[Site "https://www.chess.com"]

[Event "Titled Tuesday Blitz November 16 2021"]
[White "Kislov, Oleg"]
[Black "Costachi, Mihnea"]
[WhiteFideId "13503774"]
[BlackFideId "1217518"]
[WhiteElo "2252"]
[BlackElo "2482"]
[Result "1-0"]
[Round "07"]
[TimeControl "180+1"]
[Date "2021.11.16"]
[WhiteClock "0:00:19"]
[BlackClock "0:00:22"]

1. e4 {[%clk 0:03:00]}  e5 {[%clk 0:02:59]} 2. Nf3 {[%clk 0:03:00]}  Nc6 {[%clk 0:03:00]} 3. d4 {[%clk 0:03:01]}  exd4 {[%clk 0:03:00]} 4. Nxd4 {[%clk 0:03:02]}  Nf6 {[%clk 0:03:00]} 5. Nc3 {[%clk 0:03:01]}  Bb4 {[%clk 0:03:00]} 6. Nxc6 {[%clk 0:03:01]}  bxc6 {[%clk 0:03:01]} 7. Bd3 {[%clk 0:03:01]}  d5 {[%clk 0:03:01]} 8. exd5 {[%clk 0:03:00]}  O-O {[%clk 0:03:02]} 9. O-O {[%clk 0:03:00]}  cxd5 {[%clk 0:03:02]} 10. Bg5 {[%clk 0:02:59]}  c6 {[%clk 0:03:03]} 11. Qf3 {[%clk 0:02:58]}  Bd6 {[%clk 0:03:03]} 12. Rfe1 {[%clk 0:02:49]}  Rb8 {[%clk 0:03:03]} 13. b3 {[%clk 0:02:25]}  Bb4 {[%clk 0:03:02]} 14. Bd2 {[%clk 0:02:19]}  Bg4 {[%clk 0:03:00]} 15. Qf4 {[%clk 0:02:14]}  Bd6 {[%clk 0:02:55]} 16. Qg5 {[%clk 0:02:03]}  Be6 {[%clk 0:02:41]} 17. Qh4 {[%clk 0:01:58]}  Rb4 {[%clk 0:02:36]} 18. f4 {[%clk 0:01:36]}  h6 {[%clk 0:02:19]} 19. h3 {[%clk 0:01:26]}  Be7 {[%clk 0:02:11]} 20. Qf2 {[%clk 0:01:25]}  Nd7 {[%clk 0:01:57]} 21. Na4 {[%clk 0:01:20]}  Nb6 {[%clk 0:01:36]} 22. Bxb4 {[%clk 0:01:10]}  Bxb4 {[%clk 0:01:37]} 23. c3 {[%clk 0:01:08]}  Bd6 {[%clk 0:01:28]} 24. Nc5 {[%clk 0:01:07]}  Bc8 {[%clk 0:01:27]} 25. b4 {[%clk 0:01:03]}  Qf6 {[%clk 0:01:26]} 26. Qd4 {[%clk 0:01:00]}  Qxf4 {[%clk 0:01:13]} 27. Qxf4 {[%clk 0:00:59]}  Bxf4 {[%clk 0:01:14]} 28. Re7 {[%clk 0:00:56]}  Bd2 {[%clk 0:01:14]} 29. Rxa7 {[%clk 0:00:53]}  Bxc3 {[%clk 0:01:14]} 30. Rb1 {[%clk 0:00:53]}  Nc4 {[%clk 0:00:58]} 31. a4 {[%clk 0:00:41]}  Nd2 {[%clk 0:00:56]} 32. Rc1 {[%clk 0:00:33]}  Bxb4 {[%clk 0:00:56]} 33. a5 {[%clk 0:00:32]}  Nc4 {[%clk 0:00:49]} 34. Nb3 {[%clk 0:00:25]}  Be6 {[%clk 0:00:46]} 35. a6 {[%clk 0:00:22]}  Na5 {[%clk 0:00:30]} 36. Nxa5 {[%clk 0:00:21]}  Bxa5 {[%clk 0:00:31]} 37. Rb7 {[%clk 0:00:20]}  Bc8 {[%clk 0:00:30]} 38. Rxc6 {[%clk 0:00:19]}  Bxb7 {[%clk 0:00:24]} 39. axb7 {[%clk 0:00:20]}  Bd2 {[%clk 0:00:23]} 40. Rc8 {[%clk 0:00:18]}  Bf4 {[%clk 0:00:23]} 41. Bh7+ {[%clk 0:00:18]}  Kxh7 {[%clk 0:00:24]} 42. Rxf8 {[%clk 0:00:18]}  Kg6 {[%clk 0:00:24]} 43. b8=Q {[%clk 0:00:18]}  Bxb8 {[%clk 0:00:22]} 44. Rxb8 {[%clk 0:00:19]} 1-0


[Site "https://www.chess.com"]